[Event "GER-ch Youth-U18w 2023"]
[Site "Willingen"]
[Date "2023.06.02"]
[Round "8.2"]
[White "Wagner, Margarethe"]
[Black "Adelhardt, Lisa"]
[Result "1-0"]
[Annotator "NA RC COMBH"]
[ECO "B44"]
[WhiteElo "1831"]
[BlackElo "1656"]
[PlyCount "139"]
[EventDate "2022.06.05"]
[EventType "swiss"]
[EventRounds "9"]
[EventCountry "GER"]
[SourceTitle "playchess.com"]
[Source "ChessBase"]
[SourceQuality "1"]
[TimeControl "40/4500+30:900+30"]

1. e4 {[%emt 0:00:00]} c5 {[%emt 0:00:00]} 2. Nf3 {[%emt 0:00:00]} Nc6 {[%emt 0:00:00]} 3. d4 {[%emt 0:00:00]} cxd4 {[%emt 0:00:00]} 4. Nxd4 {[%emt 0:00:00]} e6 {[%emt 0:00:00]} 5. Be3 {[%emt 0:00:00]} Nf6 {[%emt 0:00:00]} 6. Nxc6 {[%emt 0:00:00]} bxc6 {[%emt 0:00:00]} 7. Bd3 {[%emt 0:00:08]} d5 {[%emt 0:00:00]} 8. exd5 {[%emt 0:04:14]} cxd5 {[%emt 0:00:00]} 9. O-O {[%emt 0:00:48]} Be7 {[%emt 0:00:03]} 10. Bd4 {[%emt 0:05:42]} O-O {[%emt 0:05:36]} 11. Re1 {[%emt 0:06:22]} Re8 {[%emt 0:12:39]} 12. Nd2 {[%emt 0:01:38]} Nd7 {[%emt 0:06:46]} 13. Nf3 {[%emt 0:09:30]} Bf6 {[%emt 0:04:17]} 14. Bb5 {[%emt 0:11:16]} Rb8 {[%emt 0:14:47]} 15. Bxd7 {[%emt 0:07:20]} Qxd7 {[%emt 0:03:28]} 16. b3 {[%emt 0:02:58]} Bxd4 {[%emt 0:02:27]} 17. Qxd4 {[%emt 0:01:08]} f6 {[%emt 0:02:42]} 18. Rad1 {[%emt 0:03:29]} Qc7 {[%emt 0:04:39]} 19. Qd3 {[%emt 0:12:11]} Rb6 {[%emt 0:08:17]} 20. Qd2 {[%emt 0:07:42]} Kf7 {[%emt 0:01:31]} 21. Rc1 {[%emt 0:00:43]} Ba6 {[%emt 0:02:46]} 22. Nd4 {[%emt 0:01:11]} e5 {[%emt 0:03:48]} 23. Nf5 {[%emt 0:00:35]} Qd7 {[%emt 0:03:57]} 24. Ne3 {[%emt 0:01:31]} Rd6 {[%emt 0:04:01]} 25. Qd1 {[%emt 0:00:14]} g6 {[%emt 0:00:35]} 26. Qf3 {[%emt 0:01:34]} Bb7 {[%emt 0:00:53]} 27. Qg3 {[%emt 0:01:30]} f5 {[%emt 0:02:53]} 28. Qh4 {[%emt 0:02:08]} Kg7 {[%emt 0:00:19]} 29. Qb4 {[%emt 0:00:52]} ({Better is} 29. f4 $15) 29... Qc6 {[%emt 0:00:43]} (29... f4 $17 30. Nd1 Rb6) 30. f3 {[%emt 0:01:19]} Qb6 {[%emt 0:01:29]} 31. Qxb6 {[%emt 0:00:44]} axb6 {[%emt 0:00:46]} 32. a4 {[%emt 0:00:54]} Ba6 {[%emt 0:00:43]} 33. c4 {[%emt 0:01:53]} dxc4 {[%emt 0:00:28]} 34. Nxc4 {[%emt 0:00:13]} Bxc4 {[%emt 0:00:19]} 35. Rxc4 {[%emt 0:00:05]} Re7 {[%emt 0:00:21]} 36. Rec1 {[%emt 0:00:44]} Kf6 {[%emt 0:01:02]} 37. b4 {[%emt 0:01:22]} Ra7 {[%emt 0:00:50]} 38. b5 {[%emt 0:00:53]} Ke6 {[%emt 0:00:16]} 39. Kf1 {[%emt 0:00:24]} Kd7 {[%emt 0:00:57]} 40. Ke2 {[%emt 0:00:16]} Rd5 {[%emt 0:00:39]} 41. R1c3 {[%emt 0:00:00]} Rd6 {[%emt 0:00:00]} 42. Rh4 {[%emt 0:00:00]} Ke6 {[%emt 0:00:00]} 43. Rhc4 {[%emt 0:00:00]} Rad7 {[%emt 0:00:00]} 44. Rc6 {[%emt 0:00:14]} Ke7 {[%emt 0:00:56]} 45. Rxd6 {[%emt 0:04:53]} Rxd6 {[%emt 0:00:13]} 46. Rc7+ {[%emt 0:00:25]} Rd7 {[%emt 0:00:29]} 47. Rc8 {[%emt 0:00:43]} Rd4 {[%emt 0:10:45]} 48. Rc7+ {[%emt 0:02:57]} Rd7 {[%emt 0:00:28]} 49. Rc4 {[%emt 0:01:11]} Rd6 {[%emt 0:01:56]} 50. g3 {[%emt 0:02:39]} Kd7 {[%emt 0:00:31]} 51. h4 {[%emt 0:02:00]} h6 $11 {[%emt 0:02:15]} 52. Ke3 {[%emt 0:00:42]} h5 {[%emt 0:01:35]} 53. Ke2 {[%emt 0:02:36]} Ke6 {[%emt 0:00:47]} 54. Ke3 {[%emt 0:03:04]} Kd5 {[%emt 0:00:57]} 55. Kd3 {[%emt 0:00:25]} Re6 {[%emt 0:01:03]} 56. Rc8 {[%emt 0:00:37]} e4+ {[%emt 0:00:46]} 57. fxe4+ {[%emt 0:00:05]} fxe4+ {[%emt 0:00:05]} (57... Rxe4 $11 58. Rc6 Rxa4 59. Rxg6 Ra3+ 60. Kc2 Kd4) 58. Ke3 {[%emt 0:00:09]} Ke5 {[%emt 0:00:58]} (58... Re5 $142) 59. Rc4 {[%emt 0:00:41]} (59. Rc6 $16 Rxc6 {[%mdl 64] Remove Defender} 60. bxc6) 59... Kf5 $2 {[%emt 0:00:37]} (59... Kd5 $16 60. Rd4+ Kc5 61. Rxe4 Rf6) 60. Rc6 {[%emt 0:00:29]} Rxc6 {[%emt 0:00:38]} 61. bxc6 {[%emt 0:00:04]} Ke6 {[%emt 0:00:08]} 62. c7 {[%emt 0:01:22]} Kd7 {[%emt 0:00:10]} 63. c8=Q+ {[%emt 0:00:07]} Kxc8 {[%emt 0:00:03]} 64. Kxe4 {[%emt 0:00:05]} Kd7 {[%emt 0:00:25]} 65. Kd5 {[%emt 0:00:36]} Kc7 {[%emt 0:00:19]} 66. Ke6 {[%emt 0:00:15]} Kc6 {[%emt 0:00:05]} 67. Kf6 {[%emt 0:00:04]} Kc5 {[%emt 0:00:05]} 68. Kxg6 {[%emt 0:00:05]} Kb4 {[%emt 0:00:07]} 69. Kxh5 {[%emt 0:00:05]} Kxa4 {[%emt 0:00:06]} 70. g4 {[%emt 0:00:05]} 1-0

[Event "GER-ch Youth-U18w 2023"]
[Site "Willingen"]
[Date "2023.06.02"]
[Round "8.3"]
[White "Cordes, Jule"]
[Black "Groeschel, Karoline"]
[Result "0-1"]
[Annotator "NA RC COMBH"]
[ECO "E32"]
[WhiteElo "1744"]
[BlackElo "1892"]
[PlyCount "108"]
[EventDate "2022.06.05"]
[EventType "swiss"]
[EventRounds "9"]
[EventCountry "GER"]
[SourceTitle "playchess.com"]
[Source "ChessBase"]
[SourceQuality "1"]
[TimeControl "40/4500+30:900+30"]

1. d4 {[%emt 0:00:00]} Nf6 {[%emt 0:00:00]} 2. c4 {[%emt 0:00:00]} e6 {[%emt 0:00:00]} 3. Nc3 {[%emt 0:00:00]} Bb4 {[%emt 0:00:00]} 4. Qc2 {[%emt 0:00:00]} O-O {[%emt 0:00:00]} 5. Nf3 {[%emt 0:00:00]} d5 {[%emt 0:00:00]} 6. cxd5 {[%emt 0:00:00]} exd5 {[%emt 0:00:00]} 7. Bg5 {[%emt 0:00:00]} c5 {[%emt 0:00:00]} 8. e3 {[%emt 0:00:00]} c4 {[%emt 0:05:11]} 9. Be2 {[%emt 0:00:00]} h6 {[%emt 0:04:31]} 10. Bh4 {[%emt 0:01:09]} g5 {[%emt 0:02:59]} 11. Bg3 {[%emt 0:06:43]} Ne4 {[%emt 0:00:47]} (11... Nc6 $11) 12. O-O {[%emt 0:02:06]} Bxc3 {[%emt 0:04:09]} 13. bxc3 {[%emt 0:00:10]} Bf5 {[%emt 0:03:30]} 14. Qb2 {[%emt 0:04:00]} Qb6 {[%emt 0:04:26]} 15. Qa3 $1 {[%emt 0:04:59]} ({But not} 15. Qxb6 axb6 16. Rfc1 Ra3 $17) 15... Nc6 {[%emt 0:11:07]} 16. Rfc1 {[%emt 0:18:58]} Qa5 {[%emt 0:02:50]} (16... h5 $15) 17. Qb2 {[%emt 0:01:30]} b5 {[%emt 0:04:00]} 18. a3 {[%emt 0:20:09]} Qb6 {[%emt 0:06:00]} 19. Nd2 {[%emt 0:03:12]} Nxg3 {[%emt 0:13:04]} 20. hxg3 {[%emt 0:00:27]} Rfd8 {[%emt 0:04:55]} 21. g4 {[%emt 0:11:39]} Bg6 {[%emt 0:01:12]} 22. Bf3 {[%emt 0:01:56]} Na5 {[%emt 0:06:13]} 23. Re1 {[%emt 0:02:15]} Rab8 {[%emt 0:02:55]} 24. e4 {[%emt 0:03:27]} dxe4 {[%emt 0:01:06]} 25. Nxe4 {[%emt 0:03:51]} Nb3 {[%emt 0:01:37]} 26. Rad1 {[%emt 0:00:06]} a5 {[%emt 0:01:09]} 27. Nd2 {[%emt 0:00:59]} Nxd2 {[%emt 0:00:46]} 28. Rxd2 {[%emt 0:01:14]} b4 {[%emt 0:00:42]} 29. axb4 {[%emt 0:00:35]} axb4 {[%emt 0:00:10]} 30. cxb4 {[%emt 0:00:28]} Qxb4 {[%emt 0:00:33]} 31. Qxb4 {[%emt 0:00:33]} Rxb4 {[%emt 0:00:07]} 32. Rc1 {[%emt 0:00:26]} ({White should play} 32. Re3) 32... Bd3 {[%emt 0:01:27]} ({Black should try} 32... Rb1 $17 33. Rdd1 Rxc1 34. Rxc1 Bd3) 33. d5 {[%emt 0:00:24]} Rd6 {[%emt 0:00:42]} 34. Ra2 {[%emt 0:00:41] [#]} (34. Rdd1 $11 {remains equal.}) 34... Kg7 $1 {[%emt 0:01:08]} 35. Ra7 {[%emt 0:00:28]} (35. Rd2 $15) 35... Kf6 {[%emt 0:02:16]} 36. Rc7 {[%emt 0:00:28]} Rdb6 {[%emt 0:03:03]} 37. Kh2 {[%emt 0:00:34]} Rb2 {[%emt 0:00:22]} 38. Kg3 {[%emt 0:00:21]} Rd6 {[%emt 0:00:48]} 39. Rc8 {[%emt 0:00:39]} Ke5 {[%emt 0:00:27]} 40. Rc6 {[%emt 0:00:26]} Rb6 {[%emt 0:00:31]} 41. Kh2 $2 {[%emt 0:00:00]} ({Of course not} 41. Re1+ Kd4 42. Rc7 c3 $17) (41. Ra1 $1 $15) 41... Rdxc6 {[%emt 0:00:00] Remove Defender} 42. dxc6 {[%emt 0:00:00] [#]} Kd6 {[%emt 0:00:00]} (42... Rb5 $1 $19 {and Black stays clearly on top.} 43. Kg3 (43. c7 $2 Rc5 $19) 43... Rc5 44. Re1+ Kd4) 43. Kg1 {[%emt 0:06:45]} (43. Ra1 $17 Rb5 44. Ra7) 43... Rb3 $2 {[%emt 0:00:00]} ({Stronger than} 43... Rb1 44. Rxb1 Bxb1 45. Kf1) (43... Rb8 $19 44. Rd1 Kc7) 44. Bd5 $1 {[%emt 0:01:17] Promotion} Rb4 {[%emt 0:00:00]} 45. g3 {[%emt 0:09:11] [#]} Kc7 {[%emt 0:00:00]} (45... Kxd5 $2 46. c7 Rb1 47. Rxb1 (47. c8=R Rxc1+ 48. Kg2 Be4+ 49. f3 Rc2+ {[%mdl 64] Deflection} 50. Kg1 Bxf3 51. Rd8+ Ke4 52. Re8+ Kd4 53. Kf1 c3 54. Re7 Rh2 55. Kg1 Rd2 56. Kf1 c2 57. Rc7 Ke3 58. Rc3+ Rd3 59. Rxd3+ Kxd3 60. Kg1 Ke3 61. Kh2 c1=Q 62. Kh3 Qh1#) 47... Bxb1 48. c8=Q $18 (48. c8=B {gets mated.} c3 49. Kh1 c2 50. Kg2 c1=Q 51. Bb7+ Kd4 52. Bf3 Bd3 53. Bb7 Qf1+ {[%mdl 64] Deflection} 54. Kh2 Qxf2+ 55. Kh1 Ke3 56. Bg2 Qxg3 57. Kg1 Be4 58. Kh1 Qxg2#)) ({Black should try} 45... f5 $1 $17 {[%cal Rf5g4]} 46. c7 Kxc7 47. gxf5 Kd6) 46. Kg2 {[%emt 0:00:36]} f6 {[%emt 0:00:06]} 47. Kg1 {[%emt 0:00:41]} Rb5 {[%emt 0:00:16]} 48. Bf3 {[%emt 0:00:34]} Rc5 {[%emt 0:00:13]} 49. Rc3 $19 {[%emt 0:00:24]} (49. Bh1 $142) 49... Kd6 {[%emt 0:00:13]} 50. Bg2 {[%emt 0:00:37]} Ke5 {[%emt 0:00:28]} 51. Bf1 {[%emt 0:00:27]} Bxf1 {[%emt 0:01:05]} 52. Kxf1 {[%emt 0:00:01]} Kd4 {[%emt 0:00:14]} 53. Rc1 {[%emt 0:00:18]} Rxc6 {[%emt 0:00:31]} 54. Ke2 {[%emt 0:00:16]} c3 {[%emt 0:00:28]} 0-1

[Event "GER-ch Youth-U18w 2023"]
[Site "Willingen"]
[Date "2023.06.02"]
[Round "8.4"]
[White "Petersen, Sophie"]
[Black "Albayrak, Nese Pinar"]
[Result "0-1"]
[Annotator "NA RC COMBH"]
[ECO "E71"]
[WhiteElo "1763"]
[BlackElo "1763"]
[PlyCount "74"]
[EventDate "2022.06.05"]
[EventType "swiss"]
[EventRounds "9"]
[EventCountry "GER"]
[SourceTitle "playchess.com"]
[Source "ChessBase"]
[SourceQuality "1"]
[TimeControl "40/4500+30:900+30"]

1. d4 {[%emt 0:00:00]} Nf6 {[%emt 0:00:00]} 2. c4 {[%emt 0:00:00]} g6 {[%emt 0:00:00]} 3. Nc3 {[%emt 0:00:00]} Bg7 {[%emt 0:00:00]} 4. e4 {[%emt 0:00:00]} d6 {[%emt 0:00:00]} 5. h3 {[%emt 0:00:00]} O-O {[%emt 0:00:00]} 6. Be3 {[%emt 0:00:00]} e5 {[%emt 0:00:00]} 7. d5 {[%emt 0:00:00]} Na6 {[%emt 0:00:00]} 8. g4 {[%emt 0:00:00]} Nc5 {[%emt 0:00:00]} 9. f3 {[%emt 0:00:00]} a5 {[%emt 0:02:53]} 10. Nge2 {[%emt 0:00:00]} h5 {[%emt 0:07:13]} 11. Bg5 {[%emt 0:00:00]} Qe8 {[%emt 0:07:41]} 12. Ng3 {[%emt 0:12:45]} Nh7 {[%emt 0:04:31]} 13. h4 {[%emt 0:03:06]} Nxg5 {[%emt 0:01:37]} 14. hxg5 {[%emt 0:00:10]} Qd8 {[%emt 0:13:14]} 15. Qd2 {[%emt 0:02:57]} hxg4 {[%emt 0:07:39]} 16. Qh2 {[%emt 0:10:39]} Re8 {[%emt 0:04:07]} 17. Qh4 {[%emt 0:09:19]} gxf3 {[%emt 0:03:03]} 18. O-O-O {[%emt 0:03:10]} Kf8 {[%emt 0:03:51]} 19. Kc2 {[%emt 0:08:49]} Ke7 {[%emt 0:03:57]} 20. Qh7 {[%emt 0:01:21]} Rg8 {[%emt 0:00:33]} 21. Rd2 {[%emt 0:07:50]} Qf8 {[%emt 0:03:35]} 22. Qh2 {[%emt 0:02:59]} Bg4 {[%emt 0:02:56]} 23. Qh4 {[%emt 0:02:54]} Bd7 {[%emt 0:00:41]} 24. Qh2 {[%emt 0:00:59]} Bg4 {[%emt 0:03:35]} 25. Qg1 {[%emt 0:04:55]} f5 {[%emt 0:04:18]} 26. gxf6+ {[%emt 0:02:33]} Qxf6 {[%emt 0:00:42]} 27. Nb5 {[%emt 0:02:22]} Raf8 {[%emt 0:02:24]} 28. Qf2 {[%emt 0:01:35]} Kd8 {[%emt 0:01:23]} 29. Bh3 {[%emt 0:02:15]} Qf4 {[%emt 0:00:25]} 30. Bxg4 {[%emt 0:02:17]} Nxe4 {[%emt 0:06:06]} 31. Nxe4 {[%emt 0:02:19]} Qxe4+ {[%emt 0:00:02]} 32. Kc1 {[%emt 0:04:04]} Qxg4 {[%emt 0:00:21]} 33. Rh4 {[%emt 0:01:14]} Qg5 {[%emt 0:01:41]} 34. Nxd6 {[%emt 0:00:55]} cxd6 {[%emt 0:00:53]} 35. Qb6+ {[%emt 0:00:05]} Kc8 {[%emt 0:01:28]} 36. c5 {[%emt 0:00:42]} f2 {[%emt 0:01:16]} 37. Kc2 {[%emt 0:01:07]} Qxh4 {[%emt 0:01:04]} 0-1

[Event "GER-ch Youth-U18w 2023"]
[Site "Willingen"]
[Date "2023.06.02"]
[Round "8.5"]
[White "Buchholz, Maja Patricia"]
[Black "Hafermann, Lara"]
[Result "1-0"]
[Annotator "NA RC COMBH"]
[ECO "E17"]
[WhiteElo "1899"]
[BlackElo "1498"]
[PlyCount "37"]
[EventDate "2022.06.05"]
[EventType "swiss"]
[EventRounds "9"]
[EventCountry "GER"]
[SourceTitle "playchess.com"]
[Source "ChessBase"]
[SourceQuality "1"]
[TimeControl "40/4500+30:900+30"]

1. c4 {[%emt 0:00:00]} Nf6 {[%emt 0:00:00]} 2. g3 {[%emt 0:00:00]} e6 {[%emt 0:00:00]} 3. Bg2 {[%emt 0:00:00]} d5 {[%emt 0:00:00]} 4. Nf3 {[%emt 0:00:00]} Be7 {[%emt 0:00:00]} 5. b3 {[%emt 0:00:00]} b6 {[%emt 0:00:00]} 6. cxd5 {[%emt 0:00:00]} Nxd5 {[%emt 0:00:00]} 7. Bb2 {[%emt 0:00:00]} O-O {[%emt 0:00:00]} 8. O-O {[%emt 0:00:00]} Bb7 {[%emt 0:00:00]} 9. d4 {[%emt 0:00:00]} c5 {[%emt 0:00:00]} 10. Nbd2 {[%emt 0:05:42]} Nd7 {[%emt 0:00:00]} 11. Nc4 {[%emt 0:05:24]} Rc8 {[%emt 0:04:28]} 12. Rc1 {[%emt 0:04:48]} (12. e4 $5 {[%cal Re4d5]} N5f6 13. e5 $11) 12... Rc7 {[%emt 0:04:19]} 13. e4 {[%emt 0:19:08]} N5f6 {[%emt 0:07:58]} 14. e5 {[%emt 0:00:57]} Nd5 {[%emt 0:00:08]} 15. h4 {[%emt 0:04:55]} h6 {[%emt 0:01:51]} 16. Qe2 {[%emt 0:02:12]} Qa8 {[%emt 0:03:22]} 17. Rfd1 {[%emt 0:00:50]} Rfc8 {[%emt 0:00:38]} 18. Ba1 {[%emt 0:04:59]} a6 {[%emt 0:06:38]} (18... cxd4 $11 19. Nxd4 a6) 19. Bb2 $17 {[%emt 0:00:58]} (19. Nd6 $14 {stays ahead.}) 1-0

[Event "GER-ch Youth-U18w 2023"]
[Site "Willingen"]
[Date "2023.06.02"]
[Round "8.6"]
[White "Doll, Rebecca"]
[Black "Henninger, Claire"]
[Result "1-0"]
[Annotator "TA"]
[ECO "B19"]
[WhiteElo "1918"]
[BlackElo "1610"]
[PlyCount "117"]
[EventDate "2022.06.05"]
[EventType "swiss"]
[EventRounds "9"]
[EventCountry "GER"]
[SourceTitle "playchess.com"]
[Source "ChessBase"]
[SourceQuality "1"]
[TimeControl "40/4500+30:900+30"]

{[%evp 29,117,31,30,18,50,45,39,56,101,35,165,93,83,95,96,71,89,73,248,240,219,160,157,25,25,22,40,29,23,28,84,47,92,97,96,91,94,71,173,173,160,89,353,332,356,343,322,346,570,566,811,752,1100,1064,2185,2177,6817,6837,6821,4549,2604,2579,12831,12828,2566,6303,6717,4114,12839,10381,6709,2671,12842,12842,12843,12843,12845,12845,12846,12845,12847,12847,12847,12847,12848,12848,12848,12849,12849,12850]} 1. e4 {[%emt 0:00:00]} c6 {[%emt 0:00:00]} 2. d4 {[%emt 0:00:00]} d5 {[%emt 0:00:00]} 3. Nd2 {[%emt 0:00:00]} dxe4 {[%emt 0:00:00]} 4. Nxe4 {[%emt 0:00:00]} Bf5 {[%emt 0:00:00]} 5. Ng3 {[%emt 0:00:00]} Bg6 {[%emt 0:00:00]} 6. Nf3 {[%emt 0:00:00]} Nd7 {[%emt 0:00:00]} 7. h4 {[%emt 0:00:00][%cal Bh2h4,Bh4h5][%mdl 32]} h6 {[%emt 0:00:00]} 8. h5 {[%emt 0:00:00]} Bh7 {[%emt 0:00:00]} 9. Bd3 {[%emt 0:00:00]} Bxd3 {[%emt 0:00:00]} 10. Qxd3 {[%emt 0:00:00]} e6 {[%emt 0:00:00]} 11. Bd2 {[%emt 0:00:00]} Ngf6 {[%emt 0:00:00]} 12. O-O-O {[%emt 0:00:00]} Bd6 {[%emt 0:00:00]} 13. Ne4 {[%emt 0:00:00]} Nxe4 {[%emt 0:00:00]} 14. Qxe4 {[%emt 0:00:00]} Nf6 {[%emt 0:00:00]} 15. Qe2 {[%emt 0:00:00]} Qc7 {[%emt 0:00:00]} 16. g3 {[%emt 0:00:00] B19: Classical Caro-Kann: 4...Bf5 main line.} Nd5 {[%emt 0:04:22]} 17. c4 {[%emt 0:00:00]} Nf6 {[%emt 0:02:38]} 18. Kb1 {[%emt 0:04:38] [#] White is slightly better.} O-O $146 {[%emt 0:03:52]} ({Predecessor:} 18... b6 19. Bc3 O-O-O 20. d5 exd5 21. Bxf6 gxf6 22. cxd5 c5 23. Nh4 Qd7 {0-1 Sandanov,T (1641)-Poletaev,V (1970) Ulan-Ude Baikal op 13th 2017 (8)}) 19. Rdg1 {[%emt 0:05:41]} (19. g4 $16) 19... Rfe8 {[%emt 0:18:04]} (19... Nh7 $1 $14) 20. c5 {[%emt 0:06:06]} (20. g4 $1 $18 {[%cal Rg4g5] Threatens to win with g5.} Bf4 21. g5 {[%mdl 64] X-Ray Attack} hxg5 22. Nxg5 Bxd2 23. Qxd2) 20... Be7 $16 {[%emt 0:07:20]} 21. g4 $1 {[%emt 0:04:15] aiming for g5.} Nh7 {[%emt 0:01:27]} 22. g5 {[%emt 0:01:08]} hxg5 {[%emt 0:01:11]} 23. Nxg5 {[%emt 0:09:37]} (23. h6 g6 $11) 23... Qd8 $2 {[%emt 0:10:57]} (23... Bxg5 $16 {keeps fighting.} 24. Bxg5 f6) 24. Nxh7 $18 {[%emt 0:03:01]} Kxh7 {[%emt 0:00:24]} 25. Qe4+ {[%emt 0:00:39]} (25. Qg4 $6 Bf6 $14) 25... Kh8 {[%emt 0:01:02]} 26. Bf4 {[%emt 0:15:23] White is much more active.} ({Reject} 26. h6 $6 g6 $14) (26. Bc3 $16) 26... Qd5 $11 {[%emt 0:07:09]} 27. Qxd5 $40 {[%emt 0:10:58][%mdl 128] White has some attack.} exd5 {[%emt 0:01:35]} 28. Be5 {[%emt 0:02:42]} f6 {[%emt 0:01:37]} 29. Bf4 {[%emt 0:00:16] Hoping for Rg6.} b6 {[%emt 0:10:00]} (29... Bf8 $11) 30. b4 {[%emt 0:02:42]} bxc5 {[%emt 0:02:15]} 31. bxc5 {[%emt 0:03:21]} ({Don't play} 31. dxc5 $6 Bf8 $11) 31... Bf8 {[%emt 0:00:43] [#]} 32. Re1 $1 {[%emt 0:00:48] Prevents Re2.} Kh7 {[%emt 0:01:14]} 33. Kc2 {[%emt 0:01:29]} Rad8 {[%emt 0:02:35] [#]} (33... Rxe1 $16 {might work better.} 34. Rxe1 Rc8) 34. Kd3 $1 $18 {[%emt 0:01:07]} Rc8 {[%emt 0:08:42]} 35. f3 {[%emt 0:00:42]} ({White should play} 35. Rxe8 Rxe8 36. Rb1) 35... Kg8 $2 {[%emt 0:01:56][%mdl 8192]} (35... Rxe1 $16 36. Rxe1 g6) 36. Rxe8 {[%emt 0:03:02]} Rxe8 {[%emt 0:00:14][%mdl 4096] Endgame KRB-KRB} 37. Rb1 {[%emt 0:00:10]} Kf7 {[%emt 0:02:53]} 38. a4 {[%emt 0:01:32][%cal Ba2a4,Ba4a5,Ba5a6][%mdl 32]} Re7 $2 {[%emt 0:01:29]} (38... g5 {is a better defense.}) 39. a5 {[%emt 0:01:23] White is clearly winning.} Rd7 {[%emt 0:00:40]} 40. a6 {[%emt 0:01:17] And now Rb7 would win.} Re7 {[%emt 0:00:32]} 41. Rb7 {[%emt 0:17:04] Threatening mate with Bd6.} Ke6 {[%emt 0:00:00]} 42. Bd6 {[%emt 0:00:00]} Rf7 {[%emt 0:00:00]} 43. Bxf8 {[%emt 0:00:00]} Rxf8 {[%emt 0:00:00]} 44. Rxg7 {[%emt 0:00:00] KR-KR} Rh8 {[%emt 0:00:25]} 45. Rxa7 {[%emt 0:00:00] Rc7 is the strong threat.} Rxh5 {[%emt 0:00:24]} 46. Rc7 {[%emt 0:00:00]} Rh1 {[%emt 0:04:50]} 47. Rxc6+ {[%emt 0:00:00]} Kf5 {[%emt 0:00:47]} 48. Rd6 {[%emt 0:00:00]} Ra1 {[%emt 0:01:35]} 49. Rxd5+ {[%emt 0:00:00]} Ke6 {[%emt 0:01:17]} 50. Rd6+ {[%emt 0:00:00]} Ke7 {[%emt 0:00:07]} 51. Ke4 {[%emt 0:00:00]} Re1+ {[%emt 0:00:29]} 52. Kf5 {[%emt 0:00:00]} Rf1 {[%emt 0:00:21]} 53. f4 {[%emt 0:00:00]} (53. Rxf6 Rxf3+ 54. Ke5 Rxf6 55. a7 Ra6 56. Kf4 Rxa7 57. Ke5 Ra4 58. Kd5 Kd7 59. Ke5 Kc6 60. Ke4 Ra7 61. Ke5 Re7+ 62. Kf6 Re4 63. Kg5 Rxd4 64. Kf5 Kxc5 65. Ke5 Rh4 66. Kf6 Kd6 67. Kg5 Ra4 68. Kf5 Rd4 69. Kg6 Ke6 70. Kg5 Re4 71. Kg6 Rg4+ 72. Kh5 Kf5 73. Kh6 Kf6 74. Kh7 Rh4+ 75. Kg8 Rh3 76. Kf8 Rh8#) 53... Rd1 {[%emt 0:00:29]} 54. d5 {[%emt 0:00:00][%cal Bd4d5,Bd5d6][%mdl 32]} Rc1 {[%emt 0:00:13]} 55. a7 {[%emt 0:00:00]} Ra1 {[%emt 0:00:27]} 56. Rxf6 {[%emt 0:00:00]} Rxa7 {[%emt 0:00:04]} 57. d6+ {[%emt 0:00:00]} Ke8 {[%emt 0:00:13]} 58. c6 {[%emt 0:00:00]} Ra5+ {[%emt 0:00:08]} 59. Ke6 {[%emt 0:00:00] Weighted Error Value: White=0.22 (precise) /Black=0.56} 1-0